[Event "Titled Tuesday Blitz July 4 Late 2023"]
[White "Oro, Faustino"]
[Black "Vovk, Orest"]
[WhiteFideId "20000197"]
[BlackFideId "14113490"]
[WhiteElo "2830"]
[BlackElo "2584"]
[Result "0-1"]
[Round "6"]
[TimeControl "180+2"]
[Date "2023.07.04"]
[WhiteClock "0:00:02"]
[BlackClock "0:00:04"]
[Board "22"]

1. Nf3 {[%clk 0:03:00]}  h6 {[%clk 0:03:00]} 2. e4 {[%clk 0:03:00]}  g5 {[%clk 0:03:00]} 3. d4 {[%clk 0:03:00]}  Bg7 {[%clk 0:03:00]} 4. Nc3 {[%clk 0:02:59]}  c5 {[%clk 0:02:59]} 5. Be3 {[%clk 0:02:51]}  g4 {[%clk 0:02:47]} 6. Nh4 {[%clk 0:02:42]}  Nc6 {[%clk 0:02:30]} 7. d5 {[%clk 0:02:37]}  Nd4 {[%clk 0:02:23]} 8. Bd3 {[%clk 0:02:03]}  d6 {[%clk 0:02:19]} 9. O-O {[%clk 0:01:54]}  e5 {[%clk 0:02:00]} 10. Nf5 {[%clk 0:01:33]}  Nxf5 {[%clk 0:01:59]} 11. exf5 {[%clk 0:01:34]}  Nf6 {[%clk 0:01:56]} 12. Ne4 {[%clk 0:01:33]}  Nxe4 {[%clk 0:01:54]} 13. Qxg4 {[%clk 0:01:18]}  Ng5 {[%clk 0:01:48]} 14. h4 {[%clk 0:01:18]}  h5 {[%clk 0:00:54]} 15. Qg3 {[%clk 0:01:02]}  f6 {[%clk 0:00:25]} 16. hxg5 {[%clk 0:01:00]}  fxg5 {[%clk 0:00:25]} 17. Bxg5 {[%clk 0:01:00]}  Bf6 {[%clk 0:00:25]} 18. Bb5+ {[%clk 0:00:56]}  Bd7 {[%clk 0:00:25]} 19. Bxd7+ {[%clk 0:00:52]}  Kxd7 {[%clk 0:00:26]} 20. Be3 {[%clk 0:00:48]}  Qe7 {[%clk 0:00:21]} 21. Qh3 {[%clk 0:00:47]}  Rag8 {[%clk 0:00:18]} 22. c3 {[%clk 0:00:46]}  Rg4 {[%clk 0:00:13]} 23. b4 {[%clk 0:00:35]}  c4 {[%clk 0:00:12]} 24. Bxa7 {[%clk 0:00:30]}  Rhg8 {[%clk 0:00:11]} 25. g3 {[%clk 0:00:12]}  h4 {[%clk 0:00:10]} 26. Be3 {[%clk 0:00:07]}  hxg3 {[%clk 0:00:08]} 27. Rfe1 {[%clk 0:00:04]}  Rh4 {[%clk 0:00:04]} 28. Qf1 {[%clk 0:00:02]}  gxf2+ {[%clk 0:00:04]} 29. Kxf2 {[%clk 0:00:03]}  Rh2+ {[%clk 0:00:04]} 30. Kf3 {[%clk 0:00:03]}  Qf7 {[%clk 0:00:03]} 31. Rad1 {[%clk 0:00:03]}  Qh5+ {[%clk 0:00:04]} 32. Ke4 {[%clk 0:00:03]}  Qg4+ {[%clk 0:00:03]} 33. Bf4 {[%clk 0:00:04]}  exf4 {[%clk 0:00:03]} 34. Qxf4 {[%clk 0:00:02]}  Re8# {[%clk 0:00:04]} 0-1


[Site "https://www.chess.com"]

[Event "Titled Tuesday Blitz July 4 Late 2023"]
[White "musclemonster12"]
[Black "Stribuk, Artiom"]
[BlackFideId "13515659"]
[WhiteElo "2537"]
[BlackElo "2815"]
[Result "1-0"]
[Round "6"]
[TimeControl "180+2"]
[Date "2023.07.04"]
[WhiteClock "0:00:27"]
[BlackClock "0:00:00"]
[Board "23"]

1. Nf3 {[%clk 0:03:00]}  Nf6 {[%clk 0:02:56]} 2. b3 {[%clk 0:03:00]}  g6 {[%clk 0:02:56]} 3. Bb2 {[%clk 0:03:01]}  Bg7 {[%clk 0:02:57]} 4. g3 {[%clk 0:03:01]}  O-O {[%clk 0:02:57]} 5. Bg2 {[%clk 0:03:02]}  d5 {[%clk 0:02:57]} 6. O-O {[%clk 0:03:02]}  c6 {[%clk 0:02:55]} 7. c4 {[%clk 0:03:00]}  Nbd7 {[%clk 0:02:55]} 8. e3 {[%clk 0:02:50]}  Re8 {[%clk 0:02:51]} 9. d4 {[%clk 0:02:50]}  Ne4 {[%clk 0:02:50]} 10. Nc3 {[%clk 0:02:47]}  Ndf6 {[%clk 0:02:50]} 11. Nxe4 {[%clk 0:02:40]}  Nxe4 {[%clk 0:02:48]} 12. Nd2 {[%clk 0:02:40]}  Nf6 {[%clk 0:02:28]} 13. Rc1 {[%clk 0:02:31]}  Bf5 {[%clk 0:02:28]} 14. Qe2 {[%clk 0:02:31]}  h5 {[%clk 0:02:19]} 15. b4 {[%clk 0:02:25]}  Bg4 {[%clk 0:01:52]} 16. Qd3 {[%clk 0:02:18]}  h4 {[%clk 0:01:45]} 17. Nf3 {[%clk 0:02:04]}  h3 {[%clk 0:01:34]} 18. Bh1 {[%clk 0:02:03]}  Bf5 {[%clk 0:01:34]} 19. Qe2 {[%clk 0:02:03]}  Qd6 {[%clk 0:01:02]} 20. c5 {[%clk 0:02:02]}  Qc7 {[%clk 0:00:56]} 21. a4 {[%clk 0:02:02]}  Nd7 {[%clk 0:00:50]} 22. Nh4 {[%clk 0:02:02]}  Be6 {[%clk 0:00:38]} 23. f4 {[%clk 0:02:01]}  Nf6 {[%clk 0:00:21]} 24. f5 {[%clk 0:01:44]}  Bxf5 {[%clk 0:00:20]} 25. Nxf5 {[%clk 0:01:43]}  gxf5 {[%clk 0:00:21]} 26. Rxf5 {[%clk 0:01:44]}  e6 {[%clk 0:00:21]} 27. Rf2 {[%clk 0:01:39]}  e5 {[%clk 0:00:19]} 28. Rcf1 {[%clk 0:01:36]}  Re7 {[%clk 0:00:04]} 29. Rxf6 {[%clk 0:01:29]}  Bxf6 {[%clk 0:00:04]} 30. Rxf6 {[%clk 0:01:30]}  Qd7 {[%clk 0:00:02]} 31. dxe5 {[%clk 0:01:28]}  Rae8 {[%clk 0:00:01]} 32. Bf3 {[%clk 0:01:17]}  d4 {[%clk 0:00:01]} 33. Bxd4 {[%clk 0:01:16]}  Rxe5 {[%clk 0:00:01]} 34. Bxe5 {[%clk 0:00:55]}  Rxe5 {[%clk 0:00:02]} 35. Bg4 {[%clk 0:00:40]}  Qe7 {[%clk 0:00:02]} 36. Qf2 {[%clk 0:00:38]}  Rxe3 {[%clk 0:00:01]} 37. Bxh3 {[%clk 0:00:38]}  Re1+ {[%clk 0:00:01]} 38. Bf1 {[%clk 0:00:38]}  Kg7 {[%clk 0:00:01]} 39. Rf4 {[%clk 0:00:38]}  Qe5 {[%clk 0:00:01]} 40. Qd4 {[%clk 0:00:37]}  Qxd4+ {[%clk 0:00:01]} 41. Rxd4 {[%clk 0:00:38]}  Ra1 {[%clk 0:00:02]} 42. a5 {[%clk 0:00:37]}  Rb1 {[%clk 0:00:01]} 43. Kg2 {[%clk 0:00:34]}  a6 {[%clk 0:00:01]} 44. h4 {[%clk 0:00:31]}  Rb2+ {[%clk 0:00:02]} 45. Kf3 {[%clk 0:00:30]}  Kf6 {[%clk 0:00:03]} 46. Bd3 {[%clk 0:00:29]}  Ke5 {[%clk 0:00:03]} 47. Ke3 {[%clk 0:00:28]}  f5 {[%clk 0:00:02]} 48. Rf4 {[%clk 0:00:28]}  Rb3 {[%clk 0:00:03]} 49. Rxf5+ {[%clk 0:00:28]}  Ke6 {[%clk 0:00:03]} 50. Rf4 {[%clk 0:00:28]}  Ke5 {[%clk 0:00:00]} 51. h5 {[%clk 0:00:27]} 1-0


[Site "https://www.chess.com"]

[Event "Titled Tuesday Blitz July 4 Late 2023"]
[White "Dixit, Nikhil"]
[Black "Talibov, Shiroghlan"]
[WhiteFideId "5059534"]
[BlackFideId "13429078"]
[WhiteElo "2516"]
[BlackElo "2814"]
[Result "0-1"]
[Round "6"]
[TimeControl "180+2"]
[Date "2023.07.04"]
[WhiteClock "0:00:10"]
[BlackClock "0:00:13"]
[Board "24"]

1. e4 {[%clk 0:02:57]}  c5 {[%clk 0:02:58]} 2. Nf3 {[%clk 0:02:56]}  e6 {[%clk 0:02:58]} 3. b3 {[%clk 0:02:54]}  b6 {[%clk 0:02:57]} 4. Bb2 {[%clk 0:02:50]}  Bb7 {[%clk 0:02:56]} 5. Qe2 {[%clk 0:02:50]}  Nc6 {[%clk 0:02:56]} 6. d4 {[%clk 0:02:50]}  cxd4 {[%clk 0:02:54]} 7. Nxd4 {[%clk 0:02:44]}  Nxd4 {[%clk 0:02:53]} 8. Bxd4 {[%clk 0:02:44]}  Nf6 {[%clk 0:02:54]} 9. f3 {[%clk 0:02:39]}  d5 {[%clk 0:02:52]} 10. Qb5+ {[%clk 0:02:33]}  Nd7 {[%clk 0:02:49]} 11. exd5 {[%clk 0:02:29]}  Bxd5 {[%clk 0:02:33]} 12. Nc3 {[%clk 0:02:26]}  Qh4+ {[%clk 0:02:33]} 13. Bf2 {[%clk 0:02:24]}  Qf6 {[%clk 0:02:33]} 14. Nxd5 {[%clk 0:02:04]}  Qxa1+ {[%clk 0:02:29]} 15. Kd2 {[%clk 0:02:01]}  exd5 {[%clk 0:02:23]} 16. Qxd7+ {[%clk 0:01:30]}  Kxd7 {[%clk 0:02:24]} 17. Bb5+ {[%clk 0:01:30]}  Kc7 {[%clk 0:02:23]} 18. Rxa1 {[%clk 0:01:30]}  Bc5 {[%clk 0:02:24]} 19. Bg3+ {[%clk 0:01:29]}  Bd6 {[%clk 0:02:24]} 20. Bd3 {[%clk 0:01:28]}  Bxg3 {[%clk 0:02:23]} 21. hxg3 {[%clk 0:01:29]}  h6 {[%clk 0:02:24]} 22. a4 {[%clk 0:01:26]}  Rhe8 {[%clk 0:02:18]} 23. a5 {[%clk 0:01:23]}  Kc6 {[%clk 0:02:08]} 24. a6 {[%clk 0:01:21]}  Rad8 {[%clk 0:02:06]} 25. Kc3 {[%clk 0:01:19]}  d4+ {[%clk 0:02:01]} 26. Kb4 {[%clk 0:01:16]}  Re5 {[%clk 0:01:53]} 27. Rh1 {[%clk 0:01:09]}  Rg5 {[%clk 0:01:46]} 28. g4 {[%clk 0:01:08]}  Re5 {[%clk 0:01:43]} 29. f4 {[%clk 0:01:06]}  Re3 {[%clk 0:01:42]} 30. g5 {[%clk 0:01:06]}  hxg5 {[%clk 0:01:40]} 31. fxg5 {[%clk 0:01:06]}  g6 {[%clk 0:01:39]} 32. Rh7 {[%clk 0:01:04]}  Rf8 {[%clk 0:01:36]} 33. Bb5+ {[%clk 0:01:03]}  Kd6 {[%clk 0:01:32]} 34. Bc4 {[%clk 0:00:50]}  Ke7 {[%clk 0:01:32]} 35. Rh4 {[%clk 0:00:45]}  Re5 {[%clk 0:01:29]} 36. Rxd4 {[%clk 0:00:43]}  Rxg5 {[%clk 0:01:28]} 37. Re4+ {[%clk 0:00:41]}  Kd6 {[%clk 0:01:25]} 38. Rd4+ {[%clk 0:00:42]}  Kc6 {[%clk 0:01:11]} 39. Be2 {[%clk 0:00:41]}  Re8 {[%clk 0:01:03]} 40. Bf3+ {[%clk 0:00:42]}  Kc7 {[%clk 0:01:03]} 41. Rc4+ {[%clk 0:00:42]}  Rc5 {[%clk 0:01:03]} 42. Rxc5+ {[%clk 0:00:41]}  bxc5+ {[%clk 0:01:04]} 43. Kxc5 {[%clk 0:00:41]}  Re6 {[%clk 0:01:03]} 44. Bb7 {[%clk 0:00:41]}  f5 {[%clk 0:00:59]} 45. c4 {[%clk 0:00:38]}  g5 {[%clk 0:00:59]} 46. b4 {[%clk 0:00:38]}  g4 {[%clk 0:00:57]} 47. b5 {[%clk 0:00:38]}  f4 {[%clk 0:00:57]} 48. Bd5 {[%clk 0:00:38]}  Re5 {[%clk 0:00:46]} 49. Kd4 {[%clk 0:00:36]}  Re1 {[%clk 0:00:35]} 50. c5 {[%clk 0:00:36]}  f3 {[%clk 0:00:35]} 51. gxf3 {[%clk 0:00:32]}  g3 {[%clk 0:00:36]} 52. b6+ {[%clk 0:00:24]}  axb6 {[%clk 0:00:36]} 53. a7 {[%clk 0:00:25]}  Ra1 {[%clk 0:00:26]} 54. cxb6+ {[%clk 0:00:17]}  Kxb6 {[%clk 0:00:25]} 55. f4 {[%clk 0:00:17]}  Kxa7 {[%clk 0:00:21]} 56. Ke3 {[%clk 0:00:17]}  Rf1 {[%clk 0:00:18]} 57. Bf3 {[%clk 0:00:16]}  Kb6 {[%clk 0:00:16]} 58. f5 {[%clk 0:00:16]}  Kc7 {[%clk 0:00:13]} 59. Ke2 {[%clk 0:00:16]}  Rf2+ {[%clk 0:00:13]} 60. Ke3 {[%clk 0:00:16]}  Kd6 {[%clk 0:00:14]} 61. Kf4 {[%clk 0:00:10]}  g2 {[%clk 0:00:13]} 0-1


[Site "https://www.chess.com"]

[Event "Titled Tuesday Blitz July 4 Late 2023"]
[White "Philippe, Guillaume"]
[Black "Rustemov, Alexander"]
[WhiteFideId "36048763"]
[BlackFideId "4119002"]
[WhiteElo "2462"]
[BlackElo "2813"]
[Result "1/2-1/2"]
[Round "6"]
[TimeControl "180+2"]
[Date "2023.07.04"]
[WhiteClock "0:00:45"]
[BlackClock "0:00:07"]
[Board "25"]

1. e4 {[%clk 0:03:00]}  e6 {[%clk 0:03:00]} 2. d4 {[%clk 0:03:00]}  d5 {[%clk 0:03:00]} 3. Nc3 {[%clk 0:02:58]}  dxe4 {[%clk 0:03:00]} 4. Nxe4 {[%clk 0:02:59]}  Bd7 {[%clk 0:03:01]} 5. Bd3 {[%clk 0:02:52]}  Bc6 {[%clk 0:03:01]} 6. c3 {[%clk 0:02:49]}  Nd7 {[%clk 0:03:01]} 7. Nf3 {[%clk 0:02:48]}  Ngf6 {[%clk 0:03:01]} 8. Qe2 {[%clk 0:02:47]}  Nxe4 {[%clk 0:02:59]} 9. Bxe4 {[%clk 0:02:48]}  Bxe4 {[%clk 0:02:59]} 10. Qxe4 {[%clk 0:02:49]}  c6 {[%clk 0:02:59]} 11. O-O {[%clk 0:02:46]}  Be7 {[%clk 0:03:00]} 12. Bf4 {[%clk 0:02:45]}  O-O {[%clk 0:02:59]} 13. Rfe1 {[%clk 0:02:45]}  Re8 {[%clk 0:02:58]} 14. h3 {[%clk 0:02:37]}  Qa5 {[%clk 0:02:57]} 15. a4 {[%clk 0:02:34]}  Rad8 {[%clk 0:02:51]} 16. b4 {[%clk 0:02:32]}  Qd5 {[%clk 0:02:49]} 17. Qxd5 {[%clk 0:02:32]}  cxd5 {[%clk 0:02:48]} 18. Kf1 {[%clk 0:02:28]}  Rc8 {[%clk 0:02:47]} 19. Rec1 {[%clk 0:02:28]}  Nb6 {[%clk 0:02:35]} 20. Ke2 {[%clk 0:02:26]}  Nc4 {[%clk 0:02:33]} 21. Ra2 {[%clk 0:02:21]}  f6 {[%clk 0:02:29]} 22. Nd2 {[%clk 0:02:16]}  Kf7 {[%clk 0:02:28]} 23. Nxc4 {[%clk 0:02:15]}  Rxc4 {[%clk 0:02:28]} 24. Kd3 {[%clk 0:02:16]}  Rec8 {[%clk 0:02:28]} 25. Rac2 {[%clk 0:02:11]}  b6 {[%clk 0:02:17]} 26. Bd2 {[%clk 0:02:11]}  e5 {[%clk 0:02:06]} 27. Be3 {[%clk 0:02:11]}  e4+ {[%clk 0:02:05]} 28. Kd2 {[%clk 0:02:09]}  Bd6 {[%clk 0:02:02]} 29. f4 {[%clk 0:02:07]}  exf3 {[%clk 0:01:47]} 30. gxf3 {[%clk 0:02:08]}  g5 {[%clk 0:01:46]} 31. Kd3 {[%clk 0:01:53]}  Kg6 {[%clk 0:01:45]} 32. a5 {[%clk 0:01:45]}  bxa5 {[%clk 0:01:34]} 33. bxa5 {[%clk 0:01:45]}  Kf5 {[%clk 0:01:29]} 34. Rb1 {[%clk 0:01:42]}  a6 {[%clk 0:01:23]} 35. Rb6 {[%clk 0:01:41]}  R8c6 {[%clk 0:01:22]} 36. Rxc6 {[%clk 0:01:41]}  Rxc6 {[%clk 0:01:22]} 37. c4 {[%clk 0:01:40]}  dxc4+ {[%clk 0:01:09]} 38. Rxc4 {[%clk 0:01:41]}  Rxc4 {[%clk 0:01:09]} 39. Kxc4 {[%clk 0:01:42]}  Ke6 {[%clk 0:01:03]} 40. Bd2 {[%clk 0:01:37]}  h5 {[%clk 0:01:01]} 41. Be3 {[%clk 0:01:34]}  Be7 {[%clk 0:00:57]} 42. d5+ {[%clk 0:01:31]}  Kd7 {[%clk 0:00:47]} 43. Bd2 {[%clk 0:01:23]}  f5 {[%clk 0:00:46]} 44. Kd4 {[%clk 0:01:22]}  Bf6+ {[%clk 0:00:45]} 45. Kc5 {[%clk 0:01:22]}  g4 {[%clk 0:00:44]} 46. hxg4 {[%clk 0:01:23]}  fxg4 {[%clk 0:00:44]} 47. fxg4 {[%clk 0:01:24]}  hxg4 {[%clk 0:00:45]} 48. Be3 {[%clk 0:01:23]}  Bd8 {[%clk 0:00:43]} 49. Kb4 {[%clk 0:01:04]}  Kd6 {[%clk 0:00:43]} 50. Kc4 {[%clk 0:00:58]}  Bxa5 {[%clk 0:00:42]} 51. Bf2 {[%clk 0:00:58]}  Bc7 {[%clk 0:00:34]} 52. Bg3+ {[%clk 0:00:55]}  Kd7 {[%clk 0:00:34]} 53. Bf2 {[%clk 0:00:56]}  g3 {[%clk 0:00:32]} 54. Bg1 {[%clk 0:00:56]}  Kd6 {[%clk 0:00:29]} 55. Bc5+ {[%clk 0:00:54]}  Ke5 {[%clk 0:00:29]} 56. Bg1 {[%clk 0:00:55]}  a5 {[%clk 0:00:24]} 57. Kc5 {[%clk 0:00:54]}  Bd6+ {[%clk 0:00:21]} 58. Kb5 {[%clk 0:00:52]}  Bb4 {[%clk 0:00:20]} 59. Kc4 {[%clk 0:00:50]}  Be1 {[%clk 0:00:18]} 60. Bb6 {[%clk 0:00:47]}  a4 {[%clk 0:00:16]} 61. Bc7+ {[%clk 0:00:46]}  Kf6 {[%clk 0:00:15]} 62. Bxg3 {[%clk 0:00:44]}  Bxg3 {[%clk 0:00:07]} 63. Kb4 {[%clk 0:00:45]}  Ke5 {[%clk 0:00:07]} 64. Kxa4 {[%clk 0:00:45]}  Kxd5 {[%clk 0:00:07]} 1/2-1/2


[Site "https://www.chess.com"]

[Event "Titled Tuesday Blitz July 4 Late 2023"]
[White "Naroditsky, Daniel"]
[Black "Taboas Rodriguez, Daniel"]
[WhiteFideId "2026961"]
[BlackFideId "2208466"]
[WhiteElo "3126"]
[BlackElo "2481"]
[Result "1-0"]
[Round "6"]
[TimeControl "180+2"]
[Date "2023.07.04"]
[WhiteClock "0:00:04"]
[BlackClock "0:00:00"]
[Board "26"]

1. e4 {[%clk 0:03:00]}  e5 {[%clk 0:02:59]} 2. Nf3 {[%clk 0:03:01]}  Nc6 {[%clk 0:02:59]} 3. Nc3 {[%clk 0:02:59]}  Nf6 {[%clk 0:02:59]} 4. d4 {[%clk 0:03:00]}  exd4 {[%clk 0:02:59]} 5. Nd5 {[%clk 0:03:01]}  Be7 {[%clk 0:02:59]} 6. Bd3 {[%clk 0:02:55]}  O-O {[%clk 0:02:57]} 7. O-O {[%clk 0:02:53]}  d6 {[%clk 0:02:57]} 8. h3 {[%clk 0:02:51]}  Be6 {[%clk 0:02:49]} 9. Nxe7+ {[%clk 0:02:49]}  Nxe7 {[%clk 0:02:37]} 10. Nxd4 {[%clk 0:02:49]}  Bd7 {[%clk 0:02:32]} 11. b3 {[%clk 0:02:41]}  Nc6 {[%clk 0:02:29]} 12. Bb2 {[%clk 0:02:37]}  Re8 {[%clk 0:02:26]} 13. Re1 {[%clk 0:02:19]}  Nxd4 {[%clk 0:02:26]} 14. Bxd4 {[%clk 0:02:19]}  Bc6 {[%clk 0:02:27]} 15. Qf3 {[%clk 0:02:13]}  Nd7 {[%clk 0:02:19]} 16. Qg3 {[%clk 0:02:12]}  f6 {[%clk 0:02:08]} 17. f4 {[%clk 0:02:02]}  Nc5 {[%clk 0:02:00]} 18. Bxc5 {[%clk 0:01:49]}  dxc5 {[%clk 0:02:01]} 19. Bc4+ {[%clk 0:01:49]}  Kh8 {[%clk 0:02:00]} 20. Rad1 {[%clk 0:01:50]}  Qe7 {[%clk 0:01:58]} 21. e5 {[%clk 0:01:49]}  Rad8 {[%clk 0:01:50]} 22. Rxd8 {[%clk 0:01:40]}  Qxd8 {[%clk 0:01:43]} 23. Bd3 {[%clk 0:01:27]}  Qd5 {[%clk 0:01:26]} 24. Kh2 {[%clk 0:01:22]}  a6 {[%clk 0:01:18]} 25. Re2 {[%clk 0:00:44]}  fxe5 {[%clk 0:01:16]} 26. fxe5 {[%clk 0:00:44]}  b5 {[%clk 0:01:09]} 27. Qh4 {[%clk 0:00:29]}  h6 {[%clk 0:01:01]} 28. Qf4 {[%clk 0:00:28]}  Qe6 {[%clk 0:00:55]} 29. c4 {[%clk 0:00:19]}  Rd8 {[%clk 0:00:46]} 30. Bf5 {[%clk 0:00:16]}  Rf8 {[%clk 0:00:40]} 31. Bxe6 {[%clk 0:00:09]}  Rxf4 {[%clk 0:00:40]} 32. cxb5 {[%clk 0:00:07]}  axb5 {[%clk 0:00:40]} 33. Rc2 {[%clk 0:00:08]}  c4 {[%clk 0:00:18]} 34. bxc4 {[%clk 0:00:08]}  b4 {[%clk 0:00:18]} 35. Bd5 {[%clk 0:00:05]}  Bxd5 {[%clk 0:00:12]} 36. cxd5 {[%clk 0:00:06]}  Rd4 {[%clk 0:00:13]} 37. Rxc7 {[%clk 0:00:04]}  Rxd5 {[%clk 0:00:13]} 38. e6 {[%clk 0:00:03]}  Re5 {[%clk 0:00:14]} 39. e7 {[%clk 0:00:04]}  Kh7 {[%clk 0:00:14]} 40. Rb7 {[%clk 0:00:04]}  Kg6 {[%clk 0:00:14]} 41. Kg3 {[%clk 0:00:04]}  Kf6 {[%clk 0:00:14]} 42. Rxb4 {[%clk 0:00:04]}  Rxe7 {[%clk 0:00:13]} 43. a4 {[%clk 0:00:03]}  Re3+ {[%clk 0:00:12]} 44. Kf4 {[%clk 0:00:03]}  Ra3 {[%clk 0:00:13]} 45. h4 {[%clk 0:00:02]}  g6 {[%clk 0:00:12]} 46. Kg4 {[%clk 0:00:02]}  h5+ {[%clk 0:00:12]} 47. Kf4 {[%clk 0:00:03]}  Ra2 {[%clk 0:00:11]} 48. Kf3 {[%clk 0:00:03]}  Ra3+ {[%clk 0:00:11]} 49. Kf4 {[%clk 0:00:04]}  Ra2 {[%clk 0:00:12]} 50. g3 {[%clk 0:00:04]}  Ra3 {[%clk 0:00:12]} 51. Rb6+ {[%clk 0:00:04]}  Kf7 {[%clk 0:00:12]} 52. Ra6 {[%clk 0:00:05]}  Kg7 {[%clk 0:00:12]} 53. Ra8 {[%clk 0:00:06]}  Kh6 {[%clk 0:00:11]} 54. a5 {[%clk 0:00:06]}  Ra4+ {[%clk 0:00:11]} 55. Ke5 {[%clk 0:00:06]}  Ra3 {[%clk 0:00:12]} 56. a6 {[%clk 0:00:06]}  Kg7 {[%clk 0:00:11]} 57. Kd6 {[%clk 0:00:05]}  Rxg3 {[%clk 0:00:10]} 58. Kc6 {[%clk 0:00:06]}  Ra3 {[%clk 0:00:08]} 59. Kb6 {[%clk 0:00:06]}  Rb3+ {[%clk 0:00:08]} 60. Ka7 {[%clk 0:00:07]}  Rb4 {[%clk 0:00:08]} 61. Rb8 {[%clk 0:00:06]}  Rxh4 {[%clk 0:00:08]} 62. Rb2 {[%clk 0:00:03]}  Ra4 {[%clk 0:00:07]} 63. Kb7 {[%clk 0:00:04]}  h4 {[%clk 0:00:05]} 64. a7 {[%clk 0:00:04]}  Kh6 {[%clk 0:00:05]} 65. Kb8 {[%clk 0:00:03]}  Kh5 {[%clk 0:00:03]} 66. Kb7 {[%clk 0:00:03]}  g5 {[%clk 0:00:02]} 67. Kb6 {[%clk 0:00:03]}  h3 {[%clk 0:00:00]} 68. Rb3 {[%clk 0:00:04]} 1-0


[Site "https://www.chess.com"]

[Event "Titled Tuesday Blitz July 4 Late 2023"]
[White "Xiong, Jeffery"]
[Black "Katz, Alexander"]
[WhiteFideId "2047640"]
[BlackFideId "2039796"]
[WhiteElo "2939"]
[BlackElo "2665"]
[Result "1-0"]
[Round "6"]
[TimeControl "180+2"]
[Date "2023.07.04"]
[WhiteClock "0:02:53"]
[BlackClock "0:01:56"]
[Board "29"]

1. e4 {[%clk 0:03:00]}  d6 {[%clk 0:02:57]} 2. d4 {[%clk 0:02:59]}  Nf6 {[%clk 0:02:58]} 3. Nc3 {[%clk 0:02:59]}  g6 {[%clk 0:02:59]} 4. Nf3 {[%clk 0:03:00]}  Bg7 {[%clk 0:02:59]} 5. Be3 {[%clk 0:03:01]}  O-O {[%clk 0:03:00]} 6. Qd2 {[%clk 0:03:01]}  c6 {[%clk 0:03:00]} 7. Bh6 {[%clk 0:03:00]}  b5 {[%clk 0:03:00]} 8. Bd3 {[%clk 0:02:58]}  e5 {[%clk 0:02:45]} 9. Bxg7 {[%clk 0:02:54]}  Kxg7 {[%clk 0:02:44]} 10. dxe5 {[%clk 0:02:55]}  dxe5 {[%clk 0:02:45]} 11. Nxe5 {[%clk 0:02:56]}  Re8 {[%clk 0:02:32]} 12. f4 {[%clk 0:02:56]}  b4 {[%clk 0:02:01]} 13. Ne2 {[%clk 0:02:53]}  Qd4 {[%clk 0:01:56]} 14. Nxd4 {[%clk 0:02:53]} 1-0


[Site "https://www.chess.com"]

[Event "Titled Tuesday Blitz July 4 Late 2023"]
[White "Ibrahimli, Murad"]
[Black "Moksh Amit Doshi"]
[WhiteFideId "13410229"]
[BlackFideId "25064967"]
[WhiteElo "2921"]
[BlackElo "2595"]
[Result "1-0"]
[Round "6"]
[TimeControl "180+2"]
[Date "2023.07.04"]
[WhiteClock "0:01:56"]
[BlackClock "0:00:47"]
[Board "31"]

1. c4 {[%clk 0:03:00]}  e5 {[%clk 0:02:49]} 2. Nc3 {[%clk 0:03:00]}  Nf6 {[%clk 0:02:48]} 3. e3 {[%clk 0:03:00]}  Bb4 {[%clk 0:02:43]} 4. Nge2 {[%clk 0:03:00]}  O-O {[%clk 0:02:31]} 5. a3 {[%clk 0:02:59]}  Be7 {[%clk 0:02:31]} 6. d4 {[%clk 0:02:59]}  exd4 {[%clk 0:02:32]} 7. Qxd4 {[%clk 0:02:58]}  Nc6 {[%clk 0:02:31]} 8. Qd1 {[%clk 0:02:55]}  d6 {[%clk 0:02:22]} 9. Nf4 {[%clk 0:02:54]}  Bg4 {[%clk 0:02:20]} 10. Be2 {[%clk 0:02:53]}  Bxe2 {[%clk 0:02:20]} 11. Qxe2 {[%clk 0:02:54]}  a5 {[%clk 0:02:17]} 12. b3 {[%clk 0:02:51]}  Nd7 {[%clk 0:02:00]} 13. O-O {[%clk 0:02:49]}  Bf6 {[%clk 0:02:00]} 14. Nfd5 {[%clk 0:02:49]}  Nc5 {[%clk 0:01:53]} 15. Rb1 {[%clk 0:02:49]}  Bxc3 {[%clk 0:01:50]} 16. Nxc3 {[%clk 0:02:48]}  Re8 {[%clk 0:01:51]} 17. Rd1 {[%clk 0:02:44]}  Qc8 {[%clk 0:01:49]} 18. Nd5 {[%clk 0:02:41]}  Ne7 {[%clk 0:01:47]} 19. Qc2 {[%clk 0:02:29]}  Nxd5 {[%clk 0:01:43]} 20. cxd5 {[%clk 0:02:30]}  Qd7 {[%clk 0:01:35]} 21. Bb2 {[%clk 0:02:29]}  h5 {[%clk 0:01:32]} 22. h3 {[%clk 0:02:27]}  Qe7 {[%clk 0:01:21]} 23. Bd4 {[%clk 0:02:24]}  Ne4 {[%clk 0:01:19]} 24. Rbc1 {[%clk 0:02:22]}  Rac8 {[%clk 0:01:19]} 25. b4 {[%clk 0:02:22]}  axb4 {[%clk 0:01:19]} 26. axb4 {[%clk 0:02:23]}  Qg5 {[%clk 0:01:18]} 27. Qe2 {[%clk 0:02:19]}  h4 {[%clk 0:01:15]} 28. Qg4 {[%clk 0:02:16]}  Qxg4 {[%clk 0:01:10]} 29. hxg4 {[%clk 0:02:17]}  Kh7 {[%clk 0:01:10]} 30. f3 {[%clk 0:02:17]}  Ng3 {[%clk 0:01:08]} 31. Kf2 {[%clk 0:02:17]}  f5 {[%clk 0:01:08]} 32. gxf5 {[%clk 0:02:12]}  Nxf5 {[%clk 0:01:08]} 33. e4 {[%clk 0:02:05]}  Nxd4 {[%clk 0:01:07]} 34. Rxd4 {[%clk 0:02:06]}  g5 {[%clk 0:01:07]} 35. Rdc4 {[%clk 0:02:03]}  Re7 {[%clk 0:01:07]} 36. b5 {[%clk 0:02:04]}  b6 {[%clk 0:01:07]} 37. Rc6 {[%clk 0:02:03]}  Ra8 {[%clk 0:01:01]} 38. Rxc7 {[%clk 0:02:03]}  Ra2+ {[%clk 0:01:01]} 39. Kg1 {[%clk 0:02:03]}  Rxc7 {[%clk 0:01:01]} 40. Rxc7+ {[%clk 0:02:03]}  Kg6 {[%clk 0:01:01]} 41. Rc6 {[%clk 0:02:02]}  Kf6 {[%clk 0:00:59]} 42. Rxd6+ {[%clk 0:01:59]}  Ke5 {[%clk 0:01:00]} 43. Rxb6 {[%clk 0:01:59]}  Kf4 {[%clk 0:00:58]} 44. Kh2 {[%clk 0:01:59]}  Rb2 {[%clk 0:00:58]} 45. Rf6+ {[%clk 0:01:59]}  Ke3 {[%clk 0:00:58]} 46. Rg6 {[%clk 0:01:57]}  Kf4 {[%clk 0:00:57]} 47. b6 {[%clk 0:01:57]}  Rb1 {[%clk 0:00:51]} 48. Rf6+ {[%clk 0:01:56]}  Ke3 {[%clk 0:00:51]} 49. d6 {[%clk 0:01:56]}  Rxb6 {[%clk 0:00:47]} 50. d7 {[%clk 0:01:56]} 1-0


[Site "https://www.chess.com"]